Workbook

Sheet Comum
C2: Superior Tribunal de Justiça
C3: Secretaria de Processamento de Feitos
C4: Coordenadoria de Processamento de Feitos em Execução Judicial
C6: ="RELAÇÃO DOS PRECATÓRIOS, DE NATUREZA COMUM, EM QUE É DEVEDORA A UNIÃO, SUAS AUTARQUIAS E FUNDAÇÕES, AUTUADOS NO PERÍODO DE 03/04/2024 A 02/04/2025 INSCRITOS NA PROPOSTA ORÇAMENTÁRIA DE 2026" -> RELAÇÃO DOS PRECATÓRIOS, DE NATUREZA COMUM, EM QUE É DEVEDORA A UNIÃO, SUAS AUTARQUIAS E FUNDAÇÕES, AUTUADOS NO PERÍODO DE 03/04/2024 A 02/04/2025 INSCRITOS NA PROPOSTA ORÇAMENTÁRIA DE 2026
C8: tipo | D8: Nº | E8: registro único CNJ | F8: NATUREZA | G8: entidade devedora | J8: data base
H9: Preferência
I10: Total
B12: 1 | C12: PRC | D12: 12342 | E12: 0187238-71.2024.3.00.0000 | F12: Comum | G12: União | H12: - | I12: 2260.91 | J12: 2025-04-01
B13: 2 | C13: PRC | D13: 12350 | E13: 0190871-90.2024.3.00.0000 | F13: Comum | G13: União | H13: - | I13: 191572.45 | J13: 2025-04-01
B14: 3 | C14: PRC | D14: 12387 | E14: 0196483-09.2024.3.00.0000 | F14: Comum | G14: União | H14: - | I14: 145078.1 | J14: 2025-04-01
B15: 4 | C15: PRC | D15: 12388 | E15: 0196484-91.2024.3.00.0000 | F15: Comum | G15: União | H15: - | I15: 92308 | J15: 2025-04-01
B16: 5 | C16: PRC | D16: 12395 | E16: 0223551-31.2024.3.00.0000 | F16: Comum | G16: União | H16: - | I16: 216708.25 | J16: 2025-04-01
B17: 6 | C17: PRC | D17: 12398 | E17: 0225198-61.2024.3.00.0000 | F17: Comum | G17: União | H17: - | I17: 183751.54 | J17: 2025-04-01
B18: 7 | C18: PRC | D18: 12410 | E18: 0225458-41.2024.3.00.0000 | F18: Comum | G18: União | H18: - | I18: 182217.02 | J18: 2025-04-01
B19: 8 | C19: PRC | D19: 12413 | E19: 0225561-48.2024.3.00.0000 | F19: Comum | G19: União | H19: - | I19: 685266.42 | J19: 2025-04-01
B20: 9 | C20: PRC | D20: 12418 | E20: 0228712-22.2024.3.00.0000 | F20: Comum | G20: União | H20: - | I20: 1502156.69 | J20: 2025-04-01
B21: 10 | C21: PRC | D21: 12430 | E21: 0231799-83.2024.3.00.0000 | F21: Comum | G21: União | H21: - | I21: 286805.64 | J21: 2025-04-01
B22: 11 | C22: PRC | D22: 12431 | E22: 0231804-08.2024.3.00.0000 | F22: Comum | G22: União | H22: - | I22: 392424.04 | J22: 2025-04-01
B23: 12 | C23: PRC | D23: 12434 | E23: 0232263-10.2024.3.00.0000 | F23: Comum | G23: União | H23: - | I23: 386335.06 | J23: 2025-04-01
B24: 13 | C24: PRC | D24: 12437 | E24: 0232296-97.2024.3.00.0000 | F24: Comum | G24: União | H24: - | I24: 197420.4 | J24: 2025-04-01
B25: 14 | C25: PRC | D25: 12444 | E25: 0236913-03.2024.3.00.0000 | F25: Comum | G25: União | H25: - | I25: 1356743.65 | J25: 2025-04-01
B26: 15 | C26: PRC | D26: 12446 | E26: 0236966-81.2024.3.00.0000 | F26: Comum | G26: União | H26: - | I26: 1919494.19 | J26: 2025-04-01
B27: 16 | C27: PRC | D27: 12448 | E27: 0236981-50.2024.3.00.0000 | F27: Comum | G27: União | H27: - | I27: 242662.5 | J27: 2025-04-01
B28: 17 | C28: PRC | D28: 12449 | E28: 0236983-20.2024.3.00.0000 | F28: Comum | G28: União | H28: - | I28: 884162.46 | J28: 2025-04-01
B29: 18 | C29: PRC | D29: 12452 | E29: 0237912-53.2024.3.00.0000 | F29: Comum | G29: União | H29: - | I29: 1420527.19 | J29: 2025-04-01
B30: 19 | C30: PRC | D30: 12479 | E30: 0315225-90.2024.3.00.0000 | F30: Comum | G30: União | H30: - | I30: 1546321.77 | J30: 2025-04-01
B31: 20 | C31: PRC | D31: 12481 | E31: 0315234-52.2024.3.00.0000 | F31: Comum | G31: União | H31: - | I31: 203223.33 | J31: 2025-04-01
B32: 21 | C32: PRC | D32: 12482 | E32: 0315238-89.2024.3.00.0000 | F32: Comum | G32: União | H32: - | I32: 193884.84 | J32: 2025-04-01
B33: 22 | C33: PRC | D33: 12485 | E33: 0315282-11.2024.3.00.0000 | F33: Comum | G33: União | H33: - | I33: 202689.7 | J33: 2025-04-01
B34: 23 | C34: PRC | D34: 12486 | E34: 0315307-24.2024.3.00.0000 | F34: Comum | G34: União | H34: - | I34: 209182.18 | J34: 2025-04-01
B35: 24 | C35: PRC | D35: 12491 | E35: 0318487-48.2024.3.00.0000 | F35: Comum | G35: União | H35: - | I35: 82459.13 | J35: 2025-04-01
B36: 25 | C36: PRC | D36: 12492 | E36: 0318492-70.2024.3.00.0000 | F36: Comum | G36: União | H36: - | I36: 221900.31 | J36: 2025-04-01
B37: 26 | C37: PRC | D37: 12493 | E37: 0318493-55.2024.3.00.0000 | F37: Comum | G37: União | H37: - | I37: 234225 | J37: 2025-04-01
B38: 27 | C38: PRC | D38: 12494 | E38: 0318497-92.2024.3.00.0000 | F38: Comum | G38: União | H38: - | I38: 200555.19 | J38: 2025-04-01
B39: 28 | C39: PRC | D39: 12495 | E39: 0318507-39.2024.3.00.0000 | F39: Comum | G39: União | H39: - | I39: 203057.25 | J39: 2025-04-01
B40: 29 | C40: PRC | D40: 12496 | E40: 0318518-68.2024.3.00.0000 | F40: Comum | G40: União | H40: - | I40: 674605.72 | J40: 2025-04-01
B41: 30 | C41: PRC | D41: 12497 | E41: 0318560-20.2024.3.00.0000 | F41: Comum | G41: União | H41: - | I41: 156166.26 | J41: 2025-04-01
B42: 31 | C42: PRC | D42: 12498 | E42: 0318561-05.2024.3.00.0000 | F42: Comum | G42: União | H42: - | I42: 199228.81 | J42: 2025-04-01
B43: 32 | C43: PRC | D43: 12499 | E43: 0318568-94.2024.3.00.0000 | F43: Comum | G43: União | H43: - | I43: 239401.61 | J43: 2025-04-01
B44: 33 | C44: PRC | D44: 12500 | E44: 0318573-19.2024.3.00.0000 | F44: Comum | G44: União | H44: - | I44: 243337.5 | J44: 2025-04-01
B45: 34 | C45: PRC | D45: 12501 | E45: 0323278-60.2024.3.00.0000 | F45: Comum | G45: União | H45: - | I45: 238275 | J45: 2025-04-01
B46: 35 | C46: PRC | D46: 12502 | E46: 0323281-15.2024.3.00.0000 | F46: Comum | G46: União | H46: - | I46: 180366.26 | J46: 2025-04-01
B47: 36 | C47: PRC | D47: 12503 | E47: 0323366-98.2024.3.00.0000 | F47: Comum | G47: União | H47: - | I47: 672744.36 | J47: 2025-04-01
B48: 37 | C48: PRC | D48: 12510 | E48: 0328636-06.2024.3.00.0000 | F48: Comum | G48: União | H48: - | I48: 1175233.82 | J48: 2025-04-01
B49: 38 | C49: PRC | D49: 12512 | E49: 0328642-13.2024.3.00.0000 | F49: Comum | G49: União | H49: - | I49: 193706.96 | J49: 2025-04-01
B50: 39 | C50: PRC | D50: 12513 | E50: 0328666-41.2024.3.00.0000 | F50: Comum | G50: União | H50: - | I50: 178943.26 | J50: 2025-04-01
B51: 40 | C51: PRC | D51: 12514 | E51: 0328699-31.2024.3.00.0000 | F51: Comum | G51: União | H51: - | I51: 229254.31 | J51: 2025-04-01
B52: 41 | C52: PRC | D52: 12515 | E52: 0328710-60.2024.3.00.0000 | F52: Comum | G52: União | H52: - | I52: 295848.26 | J52: 2025-04-01
B53: 42 | C53: PRC | D53: 12530 | E53: 0333947-75.2024.3.00.0000 | F53: Comum | G53: União | H53: - | I53: 237375 | J53: 2025-04-01
B54: 43 | C54: PRC | D54: 12538 | E54: 0359155-61.2024.3.00.0000 | F54: Comum | G54: União | H54: - | I54: 193983.66 | J54: 2025-04-01
B55: 44 | C55: PRC | D55: 12539 | E55: 0359163-38.2024.3.00.0000 | F55: Comum | G55: União | H55: - | I55: 198242.8 | J55: 2025-04-01
B56: 45 | C56: PRC | D56: 12541 | E56: 0362819-03.2024.3.00.0000 | F56: Comum | G56: União | H56: - | I56: 1240198.53 | J56: 2025-04-01
B57: 46 | C57: PRC | D57: 12544 | E57: 0363091-94.2024.3.00.0000 | F57: Comum | G57: União | H57: - | I57: 324170.42 | J57: 2025-04-01
B58: 47 | C58: PRC | D58: 12545 | E58: 0363126-54.2024.3.00.0000 | F58: Comum | G58: União | H58: - | I58: 209456.63 | J58: 2025-04-01
B59: 48 | C59: PRC | D59: 12546 | E59: 0363131-76.2024.3.00.0000 | F59: Comum | G59: União | H59: - | I59: 243788.29 | J59: 2025-04-01
B60: 49 | C60: PRC | D60: 12547 | E60: 0363137-83.2024.3.00.0000 | F60: Comum | G60: União | H60: - | I60: 196908.73 | J60: 2025-04-01
B61: 50 | C61: PRC | D61: 12548 | E61: 0363155-07.2024.3.00.0000 | F61: Comum | G61: União | H61: - | I61: 239850 | J61: 2025-04-01
B62: 51 | C62: PRC | D62: 12552 | E62: 0363801-17.2024.3.00.0000 | F62: Comum | G62: União | H62: - | I62: 870745.53 | J62: 2025-04-01
B63: 52 | C63: PRC | D63: 12553 | E63: 0363820-23.2024.3.00.0000 | F63: Comum | G63: União | H63: - | I63: 200644.13 | J63: 2025-04-01
B64: 53 | C64: PRC | D64: 12554 | E64: 0367312-23.2024.3.00.0000 | F64: Comum | G64: União | H64: - | I64: 234787.5 | J64: 2025-04-01
B65: 54 | C65: PRC | D65: 12555 | E65: 0367317-45.2024.3.00.0000 | F65: Comum | G65: União | H65: - | I65: 1050507.44 | J65: 2025-04-01
B66: 55 | C66: PRC | D66: 12556 | E66: 0367363-34.2024.3.00.0000 | F66: Comum | G66: União | H66: - | I66: 198694.08 | J66: 2025-04-01
B67: 56 | C67: PRC | D67: 12557 | E67: 0367386-77.2024.3.00.0000 | F67: Comum | G67: União | H67: - | I67: 1106557.76 | J67: 2025-04-01
B68: 57 | C68: PRC | D68: 12560 | E68: 0369470-51.2024.3.00.0000 | F68: Comum | G68: União | H68: - | I68: 254991.89 | J68: 2025-04-01
B69: 58 | C69: PRC | D69: 12597 | E69: 0408321-62.2024.3.00.0000 | F69: Comum | G69: União | H69: - | I69: 566838.55 | J69: 2025-04-01
B70: 59 | C70: PRC | D70: 12598 | E70: 0408335-46.2024.3.00.0000 | F70: Comum | G70: União | H70: - | I70: 201266.69 | J70: 2025-04-01
B71: 60 | C71: PRC | D71: 12601 | E71: 0408375-28.2024.3.00.0000 | F71: Comum | G71: União | H71: - | I71: 821461.42 | J71: 2025-04-01
B72: 61 | C72: PRC | D72: 12602 | E72: 0410148-11.2024.3.00.0000 | F72: Comum | G72: União | H72: - | I72: 143721.33 | J72: 2025-04-01
B73: 62 | C73: PRC | D73: 12603 | E73: 0410153-33.2024.3.00.0000 | F73: Comum | G73: União | H73: - | I73: 351469.31 | J73: 2025-04-01
B74: 63 | C74: PRC | D74: 12604 | E74: 0410156-85.2024.3.00.0000 | F74: Comum | G74: União | H74: - | I74: 182282.51 | J74: 2025-04-01
B75: 64 | C75: PRC | D75: 12629 | E75: 0412370-49.2024.3.00.0000 | F75: Comum | G75: União | H75: - | I75: 149382.78 | J75: 2025-04-01
B76: 65 | C76: PRC | D76: 12674 | E76: 0443130-78.2024.3.00.0000 | F76: Comum | G76: União | H76: - | I76: 191239.73 | J76: 2025-04-01
B77: 66 | C77: PRC | D77: 12675 | E77: 0443192-21.2024.3.00.0000 | F77: Comum | G77: União | H77: - | I77: 1829537.61 | J77: 2025-04-01
B78: 67 | C78: PRC | D78: 12677 | E78: 0443220-86.2024.3.00.0000 | F78: Comum | G78: União | H78: - | I78: 964560.7 | J78: 2025-04-01
B79: 68 | C79: PRC | D79: 12679 | E79: 0443226-93.2024.3.00.0000 | F79: Comum | G79: União | H79: - | I79: 205370.87 | J79: 2025-04-01
B80: 69 | C80: PRC | D80: 12680 | E80: 0443256-31.2024.3.00.0000 | F80: Comum | G80: União | H80: - | I80: 223323.32 | J80: 2025-04-01
B81: 70 | C81: PRC | D81: 12681 | E81: 0443289-21.2024.3.00.0000 | F81: Comum | G81: União | H81: - | I81: 229463.01 | J81: 2025-04-01
B82: 71 | C82: PRC | D82: 12682 | E82: 0443290-06.2024.3.00.0000 | F82: Comum | G82: União | H82: - | I82: 855040.33 | J82: 2025-04-01
B83: 72 | C83: PRC | D83: 12683 | E83: 0443295-28.2024.3.00.0000 | F83: Comum | G83: União | H83: - | I83: 211694.15 | J83: 2025-04-01
B84: 73 | C84: PRC | D84: 12684 | E84: 0443301-35.2024.3.00.0000 | F84: Comum | G84: União | H84: - | I84: 262672.96 | J84: 2025-04-01
B85: 74 | C85: PRC | D85: 12685 | E85: 0443304-87.2024.3.00.0000 | F85: Comum | G85: União | H85: - | I85: 221900.31 | J85: 2025-04-01
B86: 75 | C86: PRC | D86: 12686 | E86: 0443305-72.2024.3.00.0000 | F86: Comum | G86: União | H86: - | I86: 208472.11 | J86: 2025-04-01
B87: 76 | C87: PRC | D87: 12687 | E87: 0443316-04.2024.3.00.0000 | F87: Comum | G87: União | H87: - | I87: 868625.26 | J87: 2025-04-01
B88: 77 | C88: PRC | D88: 12688 | E88: 0443338-62.2024.3.00.0000 | F88: Comum | G88: União | H88: - | I88: 335451.99 | J88: 2025-04-01
B89: 78 | C89: PRC | D89: 12689 | E89: 0443341-17.2024.3.00.0000 | F89: Comum | G89: União | H89: - | I89: 385320.97 | J89: 2025-04-01
B90: 79 | C90: PRC | D90: 12690 | E90: 0443347-24.2024.3.00.0000 | F90: Comum | G90: União | H90: - | I90: 383142.88 | J90: 2025-04-01
B91: 80 | C91: PRC | D91: 12691 | E91: 0443984-72.2024.3.00.0000 | F91: Comum | G91: União | H91: - | I91: 216564.03 | J91: 2025-04-01
B92: 81 | C92: PRC | D92: 12692 | E92: 0443993-34.2024.3.00.0000 | F92: Comum | G92: União | H92: - | I92: 229252.73 | J92: 2025-04-01
B93: 82 | C93: PRC | D93: 12693 | E93: 0444028-91.2024.3.00.0000 | F93: Comum | G93: União | H93: - | I93: 411841.66 | J93: 2025-04-01
B94: 83 | C94: PRC | D94: 12694 | E94: 0444058-29.2024.3.00.0000 | F94: Comum | G94: União | H94: - | I94: 374651.1 | J94: 2025-04-01
B95: 84 | C95: PRC | D95: 12695 | E95: 0444061-81.2024.3.00.0000 | F95: Comum | G95: União | H95: - | I95: 1129189.76 | J95: 2025-04-01
B96: 85 | C96: PRC | D96: 12696 | E96: 0444077-35.2024.3.00.0000 | F96: Comum | G96: União | H96: - | I96: 410449.32 | J96: 2025-04-01
B97: 86 | C97: PRC | D97: 12697 | E97: 0444103-33.2024.3.00.0000 | F97: Comum | G97: União | H97: - | I97: 867376.39 | J97: 2025-04-01
B98: 87 | C98: PRC | D98: 12698 | E98: 0444111-10.2024.3.00.0000 | F98: Comum | G98: União | H98: - | I98: 237712.5 | J98: 2025-04-01
B99: 88 | C99: PRC | D99: 12699 | E99: 0444119-84.2024.3.00.0000 | F99: Comum | G99: União | H99: - | I99: 849675.55 | J99: 2025-04-01
B100: 89 | C100: PRC | D100: 12704 | E100: 0444208-10.2024.3.00.0000 | F100: Comum | G100: União | H100: - | I100: 203223.33 | J100: 2025-04-01
B101: 90 | C101: PRC | D101: 12705 | E101: 0444211-62.2024.3.00.0000 | F101: Comum | G101: União | H101: - | I101: 236741.12 | J101: 2025-04-01
B102: 91 | C102: PRC | D102: 12706 | E102: 0444599-62.2024.3.00.0000 | F102: Comum | G102: União | H102: - | I102: 196197.23 | J102: 2025-04-01
B103: 92 | C103: PRC | D103: 12707 | E103: 0444655-95.2024.3.00.0000 | F103: Comum | G103: União | H103: - | I103: 224325 | J103: 2025-04-01
B104: 93 | C104: PRC | D104: 12708 | E104: 0444683-63.2024.3.00.0000 | F104: Comum | G104: União | H104: - | I104: 203515.67 | J104: 2025-04-01
B105: 94 | C105: PRC | D105: 12709 | E105: 0444685-33.2024.3.00.0000 | F105: Comum | G105: União | H105: - | I105: 197887.05 | J105: 2025-04-01
B106: 95 | C106: PRC | D106: 12710 | E106: 0444691-40.2024.3.00.0000 | F106: Comum | G106: União | H106: - | I106: 260996.38 | J106: 2025-04-01
B107: 96 | C107: PRC | D107: 12711 | E107: 0444695-77.2024.3.00.0000 | F107: Comum | G107: União | H107: - | I107: 259998.75 | J107: 2025-04-01
B108: 97 | C108: PRC | D108: 12712 | E108: 0444720-90.2024.3.00.0000 | F108: Comum | G108: União | H108: - | I108: 218475 | J108: 2025-04-01
B109: 98 | C109: PRC | D109: 12713 | E109: 0444884-55.2024.3.00.0000 | F109: Comum | G109: União | H109: - | I109: 189349 | J109: 2025-04-01
B110: 99 | C110: PRC | D110: 12714 | E110: 0445266-48.2024.3.00.0000 | F110: Comum | G110: União | H110: - | I110: 893685 | J110: 2025-04-01
B111: 100 | C111: PRC | D111: 12720 | E111: 0449085-90.2024.3.00.0000 | F111: Comum | G111: União | H111: - | I111: 229463.01 | J111: 2025-04-01
B112: 101 | C112: PRC | D112: 12721 | E112: 0449094-52.2024.3.00.0000 | F112: Comum | G112: União | H112: - | I112: 227380.7 | J112: 2025-04-01
B113: 102 | C113: PRC | D113: 12722 | E113: 0449102-29.2024.3.00.0000 | F113: Comum | G113: União | H113: - | I113: 178015.45 | J113: 2025-04-01
B114: 103 | C114: PRC | D114: 12723 | E114: 0449103-14.2024.3.00.0000 | F114: Comum | G114: União | H114: - | I114: 882285.33 | J114: 2025-04-01
B115: 104 | C115: PRC | D115: 12724 | E115: 0449107-51.2024.3.00.0000 | F115: Comum | G115: União | H115: - | I115: 1314685.17 | J115: 2025-04-01
B116: 105 | C116: PRC | D116: 12726 | E116: 0449110-06.2024.3.00.0000 | F116: Comum | G116: União | H116: - | I116: 1430584.42 | J116: 2025-04-01
B117: 106 | C117: PRC | D117: 12729 | E117: 0449288-52.2024.3.00.0000 | F117: Comum | G117: União | H117: - | I117: 747675.36 | J117: 2025-04-01
B118: 107 | C118: PRC | D118: 12730 | E118: 0449298-96.2024.3.00.0000 | F118: Comum | G118: União | H118: - | I118: 1469956.14 | J118: 2025-04-01
B119: 108 | C119: PRC | D119: 12732 | E119: 0449302-36.2024.3.00.0000 | F119: Comum | G119: União | H119: - | I119: 1248733.7 | J119: 2025-04-01
B120: 109 | C120: PRC | D120: 12734 | E120: 0449308-43.2024.3.00.0000 | F120: Comum | G120: União | H120: - | I120: 189171.13 | J120: 2025-04-01
B121: 110 | C121: PRC | D121: 12736 | E121: 0449391-59.2024.3.00.0000 | F121: Comum | G121: União | H121: - | I121: 1230155.36 | J121: 2025-04-01
B122: 111 | C122: PRC | D122: 12737 | E122: 0449395-96.2024.3.00.0000 | F122: Comum | G122: União | H122: - | I122: 195752.54 | J122: 2025-04-01
B123: 112 | C123: PRC | D123: 12738 | E123: 0449413-20.2024.3.00.0000 | F123: Comum | G123: União | H123: - | I123: 479756.69 | J123: 2025-04-01
B124: 113 | C124: PRC | D124: 12739 | E124: 0449419-27.2024.3.00.0000 | F124: Comum | G124: União | H124: - | I124: 480098.65 | J124: 2025-04-01
B125: 114 | C125: PRC | D125: 12740 | E125: 0449431-41.2024.3.00.0000 | F125: Comum | G125: União | H125: - | I125: 584092.7 | J125: 2025-04-01
B126: 115 | C126: PRC | D126: 12741 | E126: 0449460-91.2024.3.00.0000 | F126: Comum | G126: União | H126: - | I126: 453969.17 | J126: 2025-04-01
B127: 116 | C127: PRC | D127: 12742 | E127: 0449465-16.2024.3.00.0000 | F127: Comum | G127: União | H127: - | I127: 349430.3 | J127: 2025-04-01
B128: 117 | C128: PRC | D128: 12743 | E128: 0449486-89.2024.3.00.0000 | F128: Comum | G128: União | H128: - | I128: 230625 | J128: 2025-04-01
B129: 118 | C129: PRC | D129: 12744 | E129: 0449489-44.2024.3.00.0000 | F129: Comum | G129: União | H129: - | I129: 593635.27 | J129: 2025-04-01
B130: 119 | C130: PRC | D130: 12745 | E130: 0449495-51.2024.3.00.0000 | F130: Comum | G130: União | H130: - | I130: 545219.58 | J130: 2025-04-01
B131: 120 | C131: PRC | D131: 12746 | E131: 0449498-06.2024.3.00.0000 | F131: Comum | G131: União | H131: - | I131: 400056.21 | J131: 2025-04-01
B132: 121 | C132: PRC | D132: 12747 | E132: 0449510-20.2024.3.00.0000 | F132: Comum | G132: União | H132: - | I132: 1220501.73 | J132: 2025-04-01
B133: 122 | C133: PRC | D133: 12748 | E133: 0449523-19.2024.3.00.0000 | F133: Comum | G133: União | H133: - | I133: 330583.73 | J133: 2025-04-01
B134: 123 | C134: PRC | D134: 12749 | E134: 0452977-07.2024.3.00.0000 | F134: Comum | G134: União | H134: - | I134: 1535520.58 | J134: 2025-04-01
B135: 124 | C135: PRC | D135: 12750 | E135: 0453023-93.2024.3.00.0000 | F135: Comum | G135: União | H135: - | I135: 217525.33 | J135: 2025-04-01
B136: 125 | C136: PRC | D136: 12751 | E136: 0453024-78.2024.3.00.0000 | F136: Comum | G136: União | H136: - | I136: 94911.12 | J136: 2025-04-01
B137: 126 | C137: PRC | D137: 12752 | E137: 0453026-48.2024.3.00.0000 | F137: Comum | G137: União | H137: - | I137: 31637.04 | J137: 2025-04-01
B138: 127 | C138: PRC | D138: 12753 | E138: 0453034-25.2024.3.00.0000 | F138: Comum | G138: União | H138: - | I138: 31637.04 | J138: 2025-04-01
B139: 128 | C139: PRC | D139: 12754 | E139: 0453035-10.2024.3.00.0000 | F139: Comum | G139: União | H139: - | I139: 31637.04 | J139: 2025-04-01
B140: 129 | C140: PRC | D140: 12757 | E140: 0454626-07.2024.3.00.0000 | F140: Comum | G140: União | H140: - | I140: 219712.5 | J140: 2025-04-01
B141: 130 | C141: PRC | D141: 12758 | E141: 0454628-74.2024.3.00.0000 | F141: Comum | G141: União | H141: - | I141: 229500 | J141: 2025-04-01
B142: 131 | C142: PRC | D142: 12760 | E142: 0454748-20.2024.3.00.0000 | F142: Comum | G142: União | H142: - | I142: 644817.7 | J142: 2025-04-01
B143: 132 | C143: PRC | D143: 12761 | E143: 0454751-72.2024.3.00.0000 | F143: Comum | G143: União | H143: - | I143: 199754.75 | J143: 2025-04-01
B144: 133 | C144: PRC | D144: 12762 | E144: 0454755-12.2024.3.00.0000 | F144: Comum | G144: União | H144: - | I144: 190238.38 | J144: 2025-04-01
B145: 134 | C145: PRC | D145: 12763 | E145: 0456016-12.2024.3.00.0000 | F145: Comum | G145: União | H145: - | I145: 204735.28 | J145: 2025-04-01
B146: 135 | C146: PRC | D146: 12764 | E146: 0456043-92.2024.3.00.0000 | F146: Comum | G146: União | H146: - | I146: 200643.03 | J146: 2025-04-01
B147: 136 | C147: PRC | D147: 12765 | E147: 0456055-09.2024.3.00.0000 | F147: Comum | G147: União | H147: - | I147: 235575 | J147: 2025-04-01
B148: 137 | C148: PRC | D148: 12766 | E148: 0456083-74.2024.3.00.0000 | F148: Comum | G148: União | H148: - | I148: 1333597.58 | J148: 2025-04-01
B149: 138 | C149: PRC | D149: 12768 | E149: 0473804-39.2024.3.00.0000 | F149: Comum | G149: União | H149: - | I149: 261236.25 | J149: 2025-04-01
B150: 139 | C150: PRC | D150: 12769 | E150: 0473826-97.2024.3.00.0000 | F150: Comum | G150: União | H150: - | I150: 1458632.3 | J150: 2025-04-01
B151: 140 | C151: PRC | D151: 12770 | E151: 0473866-79.2024.3.00.0000 | F151: Comum | G151: União | H151: - | I151: 437340.35 | J151: 2025-04-01
B152: 141 | C152: PRC | D152: 12772 | E152: 0473873-71.2024.3.00.0000 | F152: Comum | G152: União | H152: - | I152: 471751.06 | J152: 2025-04-01
B153: 142 | C153: PRC | D153: 12775 | E153: 0474809-96.2024.3.00.0000 | F153: Comum | G153: União | H153: - | I153: 225997.87 | J153: 2025-04-01
B154: 143 | C154: PRC | D154: 12776 | E154: 0474815-06.2024.3.00.0000 | F154: Comum | G154: União | H154: - | I154: 928651.05 | J154: 2025-04-01
B155: 144 | C155: PRC | D155: 12777 | E155: 0474858-40.2024.3.00.0000 | F155: Comum | G155: União | H155: - | I155: 1886129.35 | J155: 2025-04-01
B156: 145 | C156: PRC | D156: 12778 | E156: 0474861-92.2024.3.00.0000 | F156: Comum | G156: União | H156: - | I156: 720867.89 | J156: 2025-04-01
B157: 146 | C157: PRC | D157: 12779 | E157: 0475095-74.2024.3.00.0000 | F157: Comum | G157: União | H157: - | I157: 634734.75 | J157: 2025-04-01
B158: 147 | C158: PRC | D158: 12780 | E158: 0475118-20.2024.3.00.0000 | F158: Comum | G158: União | H158: - | I158: 357541.85 | J158: 2025-04-01
B159: 148 | C159: PRC | D159: 12781 | E159: 0475119-05.2024.3.00.0000 | F159: Comum | G159: União | H159: - | I159: 1237544.78 | J159: 2025-04-01
B160: 149 | C160: PRC | D160: 12782 | E160: 0475121-72.2024.3.00.0000 | F160: Comum | G160: União | H160: - | I160: 231637.5 | J160: 2025-04-01
B161: 150 | C161: PRC | D161: 12783 | E161: 0475122-57.2024.3.00.0000 | F161: Comum | G161: União | H161: - | I161: 747445.42 | J161: 2025-04-01
B162: 151 | C162: PRC | D162: 12784 | E162: 0475123-42.2024.3.00.0000 | F162: Comum | G162: União | H162: - | I162: 747806.24 | J162: 2025-04-01
B163: 152 | C163: PRC | D163: 12785 | E163: 0475985-13.2024.3.00.0000 | F163: Comum | G163: União | H163: - | I163: 517776.98 | J163: 2025-04-01
B164: 153 | C164: PRC | D164: 12786 | E164: 0475995-57.2024.3.00.0000 | F164: Comum | G164: União | H164: - | I164: 221099.87 | J164: 2025-04-01
B165: 154 | C165: PRC | D165: 12787 | E165: 0476150-60.2024.3.00.0000 | F165: Comum | G165: União | H165: - | I165: 204201.65 | J165: 2025-04-01
B166: 155 | C166: PRC | D166: 12788 | E166: 0476156-67.2024.3.00.0000 | F166: Comum | G166: União | H166: - | I166: 224575 | J166: 2025-04-01
B167: 156 | C167: PRC | D167: 12789 | E167: 0476163-59.2024.3.00.0000 | F167: Comum | G167: União | H167: - | I167: 240862.5 | J167: 2025-04-01
B168: 157 | C168: PRC | D168: 12803 | E168: 0482864-36.2024.3.00.0000 | F168: Comum | G168: União | H168: - | I168: 368823.48 | J168: 2025-04-01
B169: 158 | C169: PRC | D169: 12804 | E169: 0482872-13.2024.3.00.0000 | F169: Comum | G169: União | H169: - | I169: 185613.61 | J169: 2025-04-01
B170: 159 | C170: PRC | D170: 12806 | E170: 0482924-09.2024.3.00.0000 | F170: Comum | G170: União | H170: - | I170: 189119.52 | J170: 2025-04-01
B171: 160 | C171: PRC | D171: 12807 | E171: 0482930-16.2024.3.00.0000 | F171: Comum | G171: União | H171: - | I171: 1157690.24 | J171: 2025-04-01
B172: 161 | C172: PRC | D172: 12808 | E172: 0482932-83.2024.3.00.0000 | F172: Comum | G172: União | H172: - | I172: 374979.32 | J172: 2025-04-01
B173: 162 | C173: PRC | D173: 12814 | E173: 0484608-66.2024.3.00.0000 | F173: Comum | G173: União | H173: - | I173: 1411701.73 | J173: 2025-04-01
B174: 163 | C174: PRC | D174: 12816 | E174: 0484951-62.2024.3.00.0000 | F174: Comum | G174: União | H174: - | I174: 338523.55 | J174: 2025-04-01
B175: 164 | C175: PRC | D175: 12817 | E175: 0484988-89.2024.3.00.0000 | F175: Comum | G175: União | H175: - | I175: 1794842.66 | J175: 2025-04-01
B176: 165 | C176: PRC | D176: 12821 | E176: 0485308-42.2024.3.00.0000 | F176: Comum | G176: União | H176: - | I176: 1157506.84 | J176: 2025-04-01
B177: 166 | C177: PRC | D177: 12822 | E177: 0485310-12.2024.3.00.0000 | F177: Comum | G177: União | H177: - | I177: 683238.08 | J177: 2025-04-01
B178: 167 | C178: PRC | D178: 12823 | E178: 0485536-17.2024.3.00.0000 | F178: Comum | G178: União | H178: - | I178: 1189098.33 | J178: 2025-04-01
B179: 168 | C179: PRC | D179: 12828 | E179: 0487711-81.2024.3.00.0000 | F179: Comum | G179: União | H179: - | I179: 220928.31 | J179: 2025-04-01
B180: 169 | C180: PRC | D180: 12836 | E180: 0021315-56.2025.3.00.0000 | F180: Comum | G180: União | H180: - | I180: 196197.23 | J180: 2025-04-01
B181: 170 | C181: PRC | D181: 12837 | E181: 0021386-58.2025.3.00.0000 | F181: Comum | G181: União | H181: - | I181: 239737.5 | J181: 2025-04-01
B182: 171 | C182: PRC | D182: 12838 | E182: 0021414-26.2025.3.00.0000 | F182: Comum | G182: União | H182: - | I182: 181433.52 | J182: 2025-04-01
B183: 172 | C183: PRC | D183: 12839 | E183: 0021432-47.2025.3.00.0000 | F183: Comum | G183: União | H183: - | I183: 251616.13 | J183: 2025-04-01
B184: 173 | C184: PRC | D184: 12840 | E184: 0021433-32.2025.3.00.0000 | F184: Comum | G184: União | H184: - | I184: 199221.12 | J184: 2025-04-01
B185: 174 | C185: PRC | D185: 12841 | E185: 0021443-76.2025.3.00.0000 | F185: Comum | G185: União | H185: - | I185: 204290.59 | J185: 2025-04-01
B186: 175 | C186: PRC | D186: 12842 | E186: 0035137-15.2025.3.00.0000 | F186: Comum | G186: União | H186: - | I186: 237633.83 | J186: 2025-04-01
B187: 176 | C187: PRC | D187: 12843 | E187: 0035168-35.2025.3.00.0000 | F187: Comum | G187: União | H187: - | I187: 210375 | J187: 2025-04-01
B188: 177 | C188: PRC | D188: 12844 | E188: 0035171-87.2025.3.00.0000 | F188: Comum | G188: União | H188: - | I188: 177261.12 | J188: 2025-04-01
B189: 178 | C189: PRC | D189: 12845 | E189: 0035177-94.2025.3.00.0000 | F189: Comum | G189: União | H189: - | I189: 196197.23 | J189: 2025-04-01
B190: 179 | C190: PRC | D190: 12846 | E190: 0035189-11.2025.3.00.0000 | F190: Comum | G190: União | H190: - | I190: 189971.57 | J190: 2025-04-01
B191: 180 | C191: PRC | D191: 12847 | E191: 0035237-67.2025.3.00.0000 | F191: Comum | G191: União | H191: - | I191: 187837.06 | J191: 2025-04-01
B192: 181 | C192: PRC | D192: 12850 | E192: 0037876-58.2025.3.00.0000 | F192: Comum | G192: União | H192: - | I192: 1232072.57 | J192: 2025-04-01
B193: 182 | C193: PRC | D193: 12851 | E193: 0037878-28.2025.3.00.0000 | F193: comum | G193: União | H193: - | I193: 267176.25 | J193: 2025-04-01
B194: 183 | C194: PRC | D194: 12853 | E194: 0037908-63.2025.3.00.0000 | F194: Comum | G194: União | H194: - | I194: 824930.58 | J194: 2025-04-01
B195: 184 | C195: PRC | D195: 12854 | E195: 0037909-48.2025.3.00.0000 | F195: Comum | G195: União | H195: - | I195: 391221.28 | J195: 2025-04-01
B196: 185 | C196: PRC | D196: 12855 | E196: 0037912-03.2025.3.00.0000 | F196: Comum | G196: União | H196: - | I196: 454397.94 | J196: 2025-04-01
B197: 186 | C197: PRC | D197: 12856 | E197: 0037915-55.2025.3.00.0000 | F197: Comum | G197: União | H197: - | I197: 296660.69 | J197: 2025-04-01
B198: 187 | C198: PRC | D198: 12857 | E198: 0037918-10.2025.3.00.0000 | F198: Comum | G198: União | H198: - | I198: 903331.34 | J198: 2025-04-01
B199: 188 | C199: PRC | D199: 12860 | E199: 0037945-90.2025.3.00.0000 | F199: Comum | G199: União | H199: - | I199: 1803347.06 | J199: 2025-04-01
B200: 189 | C200: PRC | D200: 12861 | E200: 0037948-45.2025.3.00.0000 | F200: Comum | G200: União | H200: - | I200: 1899770.28 | J200: 2025-04-01
B201: 190 | C201: PRC | D201: 12863 | E201: 0037953-67.2025.3.00.0000 | F201: Comum | G201: União | H201: - | I201: 507868.16 | J201: 2025-04-01
B202: 191 | C202: PRC | D202: 12864 | E202: 0037955-37.2025.3.00.0000 | F202: Comum | G202: União | H202: - | I202: 359104.02 | J202: 2025-04-01
B203: 192 | C203: PRC | D203: 12866 | E203: 0037958-89.2025.3.00.0000 | F203: Comum | G203: União | H203: - | I203: 1431752.45 | J203: 2025-04-01
B204: 193 | C204: PRC | D204: 12867 | E204: 0037962-29.2025.3.00.0000 | F204: Comum | G204: União | H204: - | I204: 211227.75 | J204: 2025-04-01
... 121 more rows

Sheet Indice (hidden)
A1: data | C1: SELIC | E1: data | F1: UFIR - IPCA-e | H1: salário mínimo | I1: taxa de juros da poupança | K1: Código da U.O
C2: MENSAL | D2: ACUMULADA | F2: variação | G2: valor histórico | K2: U.O | L2: Código
A3: 1 | B3: 2 | C3: 3 | D3: 4 | E3: 5 | F3: 6 | G3: 7 | H3: 8 | I3: 9
A4: 2005-01-01 | F4: 0.68 | G4: 1.605040097 | H4: 260 | K4: Ministério do Planejamento, Orçamento e Gestão | L4: 47000
A5: 2005-02-01 | F5: 0.74 | G5: 1.615954369 | H5: 260 | K5: Ministério da Saúde | L5: 36000
A6: 2005-03-01 | F6: 0.35 | G6: 1.627912432 | H6: 260 | K6: Ministério da Mulher, da Família e dos Direitos Humanos | L6: 81101
A7: 2005-04-01 | F7: 0.74 | G7: 1.633610125 | H7: 260 | K7: Ministério da Justiça | L7: 30000
A8: 2005-05-01 | F8: 0.83 | G8: 1.64569884 | H8: 300 | K8: Ministério da Fazenda | L8: 25000
A9: 2005-06-01 | F9: 0.12 | G9: 1.65935814 | H9: 300 | K9: Ministério da Economia | L9: 22000
A10: 2005-07-01 | F10: 0.11 | G10: 1.66134937 | H10: 300 | K10: Ministério da Defesa | L10: 52000
A11: 2005-08-01 | F11: 0.28 | G11: 1.663176854 | H11: 300 | K11: Ministério da Administração Federal e Reforma do Estado | L11: -
A12: 2005-09-01 | F12: 0.16 | G12: 1.66783375 | H12: 300 | K12: Instituto Nacional do Seguro Social - INSS | L12: 25303
A13: 2005-10-01 | F13: 0.56 | G13: 1.670502284 | H13: 300 | K13: INCRA | L13: 22201
A14: 2005-11-01 | F14: 0.78 | G14: 1.679857096 | H14: 300 | K14: Departamento Nacional de Obras contra as Secas - DNOCS | L14: 53204
A15: 2005-12-01 | F15: 0.38 | G15: 1.692959982 | H15: 300 | K15: Controladoria Geral da União - CGU | L15: -
A16: 2006-01-01 | F16: 0.51 | G16: 1.69939323 | H16: 300
A17: 2006-02-01 | F17: 0.52 | G17: 1.708060135 | H17: 300
A18: 2006-03-01 | F18: 0.37 | G18: 1.716942048 | H18: 300
A19: 2006-04-01 | F19: 0.17 | G19: 1.723294733 | H19: 350
A20: 2006-05-01 | F20: 0.27 | G20: 1.726224335 | H20: 350
A21: 2006-06-01 | F21: -0.15 | G21: 1.73088514 | H21: 350
A22: 2006-07-01 | F22: -0.02 | G22: 1.728288813 | H22: 350
A23: 2006-08-01 | F23: 0.19 | G23: 1.727943155 | H23: 350
A24: 2006-09-01 | F24: 0.05 | G24: 1.731226247 | H24: 350
A25: 2006-10-01 | F25: 0.29 | G25: 1.73209186 | H25: 350
A26: 2006-11-01 | F26: 0.37 | G26: 1.737114926 | H26: 350
A27: 2006-12-01 | F27: 0.35 | G27: 1.743542251 | H27: 350
A28: 2007-01-01 | F28: 0.52 | G28: 1.749644649 | H28: 350
A29: 2007-02-01 | F29: 0.46 | G29: 1.758742802 | H29: 350
A30: 2007-03-01 | F30: 0.41 | G30: 1.766833018 | H30: 350
A31: 2007-04-01 | F31: 0.22 | G31: 1.774077034 | H31: 380
A32: 2007-05-01 | F32: 0.26 | G32: 1.777980003 | H32: 380
A33: 2007-06-01 | F33: 0.29 | G33: 1.782602751 | H33: 380
A34: 2007-07-01 | F34: 0.24 | G34: 1.787772299 | H34: 380
A35: 2007-08-01 | F35: 0.42 | G35: 1.792062953 | H35: 380
A36: 2007-09-01 | F36: 0.29 | G36: 1.799589617 | H36: 380
A37: 2007-10-01 | F37: 0.24 | G37: 1.804808427 | H37: 380
A38: 2007-11-01 | F38: 0.23 | G38: 1.809139967 | H38: 380
A39: 2007-12-01 | F39: 0.7 | G39: 1.813300989 | H39: 380
A40: 2008-01-01 | F40: 0.7 | G40: 1.825994096 | H40: 380
A41: 2008-02-01 | F41: 0.64 | G41: 1.838776055 | H41: 380
A42: 2008-03-01 | F42: 0.23 | G42: 1.850544222 | H42: 415
A43: 2008-04-01 | F43: 0.59 | G43: 1.854800473 | H43: 415
A44: 2008-05-01 | F44: 0.56 | G44: 1.865743796 | H44: 415
A45: 2008-06-01 | F45: 0.9 | G45: 1.876191961 | H45: 415
A46: 2008-07-01 | F46: 0.63 | G46: 1.893077689 | H46: 415
A47: 2008-08-01 | F47: 0.35 | G47: 1.905004078 | H47: 415
A48: 2008-09-01 | F48: 0.26 | G48: 1.911671593 | H48: 415
A49: 2008-10-01 | F49: 0.3 | G49: 1.916641939 | H49: 415
A50: 2008-11-01 | F50: 0.49 | G50: 1.922391865 | H50: 415
A51: 2008-12-01 | F51: 0.29 | G51: 1.931811585 | H51: 415
A52: 2009-01-01 | F52: 0.4 | G52: 1.937413838 | H52: 415
A53: 2009-02-01 | F53: 0.63 | G53: 1.945163494 | H53: 465
A54: 2009-03-01 | F54: 0.11 | G54: 1.957418024 | H54: 465
A55: 2009-04-01 | F55: 0.36 | G55: 1.959571184 | H55: 465
A56: 2009-05-01 | F56: 0.59 | G56: 1.96662564 | H56: 465
A57: 2009-06-01 | F57: 0.38 | G57: 1.978228731 | H57: 465
A58: 2009-07-01 | F58: 0.22 | G58: 1.985746 | H58: 465
A59: 2009-08-01 | F59: 0.23 | G59: 1.990114642 | H59: 465
A60: 2009-09-01 | F60: 0.19 | G60: 1.994691905 | H60: 465
A61: 2009-10-01 | F61: 0.18 | G61: 1.99848182 | H61: 465
A62: 2009-11-01 | F62: 0.44 | G62: 2.002079087 | H62: 465
A63: 2009-12-01 | E63: 2010-01-01 | F63: 0.38 | G63: 2.010888235 | H63: 465
A64: 2010-01-01 | E64: 2010-01-01 | F64: 0.52 | G64: 2.01852961 | H64: 510
A65: 2010-02-01 | E65: 2010-02-01 | F65: 0.94 | G65: 2.029025964 | H65: 510
A66: 2010-03-01 | E66: 2010-03-01 | F66: 0.55 | G66: 2.048098808 | H66: 510
A67: 2010-04-01 | E67: 2010-04-01 | F67: 0.48 | G67: 2.059363352 | H67: 510
A68: 2010-05-01 | E68: 2010-05-01 | F68: 0.63 | G68: 2.069248296 | H68: 510
A69: 2010-06-01 | E69: 2010-06-01 | F69: 0.19 | G69: 2.08228456 | H69: 510
A70: 2010-07-01 | E70: 2010-07-01 | F70: -0.09 | G70: 2.086240901 | H70: 510
A71: 2010-08-01 | E71: 2010-08-01 | F71: -0.05 | G71: 2.084363284 | H71: 510
A72: 2010-09-01 | E72: 2010-09-01 | F72: 0.31 | G72: 2.083321102 | H72: 510
A73: 2010-10-01 | E73: 2010-10-01 | F73: 0.62 | G73: 2.089779398 | H73: 510
A74: 2010-11-01 | E74: 2010-11-01 | F74: 0.86 | G74: 2.10273603 | H74: 510
A75: 2010-12-01 | E75: 2010-12-01 | F75: 0.69 | G75: 2.12081956 | H75: 510
A76: 2011-01-01 | E76: 2011-01-01 | F76: 0.76 | G76: 2.135453215 | H76: 540
A77: 2011-02-01 | E77: 2011-02-01 | F77: 0.97 | G77: 2.151682659 | H77: 540
A78: 2011-03-01 | E78: 2011-03-01 | F78: 0.6 | G78: 2.172553981 | H78: 545
A79: 2011-04-01 | E79: 2011-04-01 | F79: 0.77 | G79: 2.185589305 | H79: 545
A80: 2011-05-01 | E80: 2011-05-01 | F80: 0.7 | G80: 2.202418343 | H80: 545
A81: 2011-06-01 | E81: 2011-06-01 | F81: 0.23 | G81: 2.217835271 | H81: 545
A82: 2011-07-01 | E82: 2011-07-01 | F82: 0.1 | G82: 2.222936292 | H82: 545
A83: 2011-08-01 | E83: 2011-08-01 | F83: 0.27 | G83: 2.225159228 | H83: 545
A84: 2011-09-01 | E84: 2011-09-01 | F84: 0.53 | G84: 2.231167158 | H84: 545
A85: 2011-10-01 | E85: 2011-10-01 | F85: 0.42 | G85: 2.242992344 | H85: 545
A86: 2011-11-01 | E86: 2011-11-01 | F86: 0.46 | G86: 2.252412912 | H86: 545
A87: 2011-12-01 | E87: 2011-12-01 | F87: 0.56 | G87: 2.262774012 | H87: 545
A88: 2012-01-01 | E88: 2012-01-01 | F88: 0.65 | G88: 2.275445546 | H88: 622
A89: 2012-02-01 | E89: 2012-02-01 | F89: 0.53 | G89: 2.290235942 | H89: 622
A90: 2012-03-01 | E90: 2012-03-01 | F90: 0.25 | G90: 2.302374193 | H90: 622
A91: 2012-04-01 | E91: 2012-04-01 | F91: 0.43 | G91: 2.308130128 | H91: 622
A92: 2012-05-01 | E92: 2012-05-01 | F92: 0.51 | G92: 2.318055088 | H92: 622
A93: 2012-06-01 | E93: 2012-06-01 | F93: 0.18 | G93: 2.329877169 | H93: 622
A94: 2012-07-01 | E94: 2012-07-01 | F94: 0.33 | G94: 2.334070947 | H94: 622
A95: 2012-08-01 | E95: 2012-08-01 | F95: 0.39 | G95: 2.341773382 | H95: 622
A96: 2012-09-01 | E96: 2012-09-01 | F96: 0.48 | G96: 2.350906298 | H96: 622
A97: 2012-10-01 | E97: 2012-10-01 | F97: 0.65 | G97: 2.362190648 | H97: 622
A98: 2012-11-01 | E98: 2012-11-01 | F98: 0.54 | G98: 2.377544887 | H98: 622
A99: 2012-12-01 | E99: 2012-12-01 | F99: 0.69 | G99: 2.39038363 | H99: 622
A100: 2013-01-01 | E100: 2013-01-01 | F100: 0.88 | G100: 2.406877277 | H100: 678
A101: 2013-02-01 | E101: 2013-02-01 | F101: 0.68 | G101: 2.428057797 | H101: 678
A102: 2013-03-01 | E102: 2013-03-01 | F102: 0.49 | G102: 2.44456859 | H102: 678
A103: 2013-04-01 | E103: 2013-04-01 | F103: 0.51 | G103: 2.456546976 | H103: 678
A104: 2013-05-01 | E104: 2013-05-01 | F104: 0.46 | G104: 2.469075365 | H104: 678
A105: 2013-06-01 | E105: 2013-06-01 | F105: 0.38 | G105: 2.480433112 | H105: 678
A106: 2013-07-01 | E106: 2013-07-01 | F106: 0.07 | G106: 2.489858758 | H106: 678
A107: 2013-08-01 | E107: 2013-08-01 | F107: 0.16 | G107: 2.491601659 | H107: 678
A108: 2013-09-01 | E108: 2013-09-01 | F108: 0.27 | G108: 2.495588222 | H108: 678
A109: 2013-10-01 | E109: 2013-10-01 | F109: 0.48 | G109: =IF(F108="","",G108+(G108*F108/100)) -> 2.50232631 | H109: 678
A110: 2013-11-01 | E110: 2013-11-01 | F110: 0.57 | G110: =IF(F109="","",G109+(G109*F109/100)) -> 2.514337476 | H110: 678
A111: 2013-12-01 | E111: 2013-12-01 | F111: 0.75 | G111: 2.5286692 | H111: 678
A112: 2014-01-01 | E112: 2014-01-01 | F112: 0.67 | G112: 2.547634219 | H112: 724
A113: 2014-02-01 | E113: 2014-02-01 | F113: 0.7 | G113: 2.564703368 | H113: 724
A114: 2014-03-01 | E114: 2014-03-01 | F114: 0.73 | G114: 2.582656292 | H114: 724
A115: 2014-04-01 | E115: 2014-04-01 | F115: 0.78 | G115: 2.601509683 | H115: 724
A116: 2014-05-01 | E116: 2014-05-01 | F116: 0.58 | G116: 2.621801458 | H116: 724
A117: 2014-06-01 | E117: 2014-06-01 | F117: 0.47 | G117: 2.637007907 | H117: 724
A118: 2014-07-01 | E118: 2014-07-01 | F118: 0.17 | G118: 2.649401844 | H118: 724
A119: 2014-08-01 | E119: 2014-08-01 | F119: 0.14 | G119: 2.653905827 | H119: 724
A120: 2014-09-01 | E120: 2014-09-01 | F120: 0.39 | G120: 2.657621295 | H120: 724
A121: 2014-10-01 | E121: 2014-10-01 | F121: 0.48 | G121: 2.667986018 | H121: 724
A122: 2014-11-01 | E122: 2014-11-01 | F122: 0.38 | G122: 2.680792351 | H122: 724
A123: 2014-12-01 | E123: 2014-12-01 | F123: 0.79 | G123: 2.690979362 | H123: 724
A124: 2015-01-01 | E124: 2015-01-01 | F124: 0.89 | G124: 2.712238099 | H124: 788
A125: 2015-02-01 | E125: 2015-02-01 | F125: 1.33 | G125: 2.736377018 | H125: 788
A126: 2015-03-01 | E126: 2015-03-01 | F126: 1.24 | G126: 2.772770832 | H126: 788
A127: 2015-04-01 | E127: 2015-04-01 | F127: 1.07 | G127: 2.807153191 | H127: 788
A128: 2015-05-01 | E128: 2015-05-01 | F128: 0.6 | G128: 2.83718973 | H128: 788
A129: 2015-06-01 | E129: 2015-06-01 | F129: 0.99 | G129: 2.854212868 | H129: 788
A130: 2015-07-01 | E130: 2015-07-01 | F130: 0.59 | G130: 2.882469575 | H130: 788
A131: 2015-08-01 | E131: 2015-08-01 | F131: 0.43 | G131: 2.899476146 | H131: 788
A132: 2015-09-01 | E132: 2015-09-01 | F132: 0.39 | G132: 2.911943893 | H132: 788
A133: 2015-10-01 | E133: 2015-10-01 | F133: 0.66 | G133: =IF(F132="","",G132+(G132*F132/100)) -> 2.923300475 | H133: 788
A134: 2015-11-01 | E134: 2015-11-01 | F134: 0.85 | G134: 2.942594258 | H134: 788
A135: 2015-12-01 | E135: 2015-12-01 | F135: 1.18 | G135: 2.967606309 | H135: 788
A136: 2016-01-01 | E136: 2016-01-01 | F136: 0.92 | G136: 3.002624063 | H136: 880
A137: 2016-02-01 | E137: 2016-02-01 | F137: 1.42 | G137: 3.030248205 | H137: 880
A138: 2016-03-01 | E138: 2016-03-01 | F138: 0.43 | G138: 3.073277729 | H138: 880
A139: 2016-04-01 | E139: 2016-04-01 | F139: 0.51 | G139: 3.086492823 | H139: 880
A140: 2016-05-01 | E140: 2016-05-01 | F140: 0.86 | G140: 3.102233937 | H140: 880
A141: 2016-06-01 | E141: 2016-06-01 | F141: 0.4 | G141: 3.128913149 | H141: 880
A142: 2016-07-01 | E142: 2016-07-01 | F142: 0.54 | G142: 3.141428801 | H142: 880
A143: 2016-08-01 | E143: 2016-08-01 | F143: 0.45 | G143: 3.158392517 | H143: 880
A144: 2016-09-01 | E144: 2016-09-01 | F144: 0.23 | G144: 3.172605283 | H144: 880
A145: 2016-10-01 | E145: 2016-10-01 | F145: 0.19 | G145: 3.179902275 | H145: 880
A146: 2016-11-01 | E146: 2016-11-01 | F146: 0.26 | G146: 3.18594409 | H146: 880
A147: 2016-12-01 | E147: 2016-12-01 | F147: 0.19 | G147: 3.194227544 | H147: 880
A148: 2017-01-01 | E148: 2017-01-01 | F148: 0.31 | G148: 3.200296577 | H148: 937
A149: 2017-02-01 | E149: 2017-02-01 | F149: 0.54 | G149: 3.210217496 | H149: 937
A150: 2017-03-01 | E150: 2017-03-01 | F150: 0.15 | G150: 3.22755267 | H150: 937
A151: 2017-04-01 | E151: 2017-04-01 | F151: 0.21 | G151: 3.232393999 | H151: 937
A152: 2017-05-01 | E152: 2017-05-01 | F152: 0.24 | G152: 3.239182027 | H152: 937
A153: 2017-06-01 | E153: 2017-06-01 | F153: 0.16 | G153: 3.246956064 | H153: 937
A154: 2017-07-01 | E154: 2017-07-01 | F154: -0.18 | G154: 3.252151193 | H154: 937
A155: 2017-08-01 | E155: 2017-08-01 | F155: 0.35 | G155: 3.246297321 | H155: 937
A156: 2017-09-01 | E156: 2017-09-01 | F156: 0.11 | G156: 3.257659362 | H156: 937
A157: 2017-10-01 | E157: 2017-10-01 | F157: 0.34 | G157: 3.261242787 | H157: 937
A158: 2017-11-01 | E158: 2017-11-01 | F158: 0.32 | G158: 3.272331013 | H158: 937
A159: 2017-12-01 | E159: 2017-12-01 | F159: 0.35 | G159: 3.282802472 | H159: 937
A160: 2018-01-01 | E160: 2018-01-01 | F160: 0.39 | G160: 3.294292281 | H160: 954 | I160: 0.3994
A161: 2018-02-01 | E161: 2018-02-01 | F161: 0.38 | G161: 3.30714002 | H161: 954 | I161: 0.3994
A162: 2018-03-01 | E162: 2018-03-01 | F162: 0.1 | G162: 3.319707153 | H162: 954 | I162: 0.3855
A163: 2018-04-01 | E163: 2018-04-01 | F163: 0.21 | G163: 3.32302686 | H163: 954 | I163: 0.3715
A164: 2018-05-01 | E164: 2018-05-01 | F164: 0.14 | G164: 3.330005216 | H164: 954 | I164: 0.3715
A165: 2018-06-01 | E165: 2018-06-01 | F165: 1.11 | G165: 3.334667223 | H165: 954 | I165: 0.3715
A166: 2018-07-01 | E166: 2018-07-01 | F166: 0.64 | G166: 3.37168203 | H166: 954 | I166: 0.3715
A167: 2018-08-01 | E167: 2018-08-01 | F167: 0.13 | G167: 3.393260795 | H167: 954 | I167: 0.3715
A168: 2018-09-01 | E168: 2018-09-01 | F168: 0.09 | G168: 3.397672034 | H168: 954 | I168: 0.3715
A169: 2018-10-01 | E169: 2018-10-01 | F169: 0.58 | G169: 3.400729939 | H169: 954 | I169: 0.3715
A170: 2018-11-01 | E170: 2018-11-01 | F170: 0.19 | G170: 3.420454172 | H170: 954 | I170: 0.3715
A171: 2018-12-01 | E171: 2018-12-01 | F171: -0.16 | G171: 3.426953035 | H171: 954 | I171: 0.3715
A172: 2019-01-01 | E172: 2019-01-01 | F172: 0.3 | G172: 3.42146991 | H172: 998 | I172: 0.3715
A173: 2019-02-01 | E173: 2019-02-01 | F173: 0.34 | G173: 3.43173432 | H173: 998 | I173: 0.3715
A174: 2019-03-01 | E174: 2019-03-01 | F174: 0.54 | G174: 3.443402217 | H174: 998 | I174: 0.3715
A175: 2019-04-01 | E175: 2019-04-01 | F175: 0.72 | G175: 3.461996589 | H175: 998 | I175: 0.3715
A176: 2019-05-01 | E176: 2019-05-01 | F176: 0.35 | G176: 3.486922964 | H176: 998 | I176: 0.3715
A177: 2019-06-01 | E177: 2019-06-01 | F177: 0.06 | G177: 3.499127194 | H177: 998 | I177: 0.3715
A178: 2019-07-01 | E178: 2019-07-01 | F178: 0.09 | G178: 3.501226671 | H178: 998 | I178: 0.3715
A179: 2019-08-01 | E179: 2019-08-01 | F179: 0.08 | G179: 3.504377775 | H179: 998 | I179: 0.3434
A180: 2019-09-01 | E180: 2019-09-01 | F180: 0.09 | G180: 3.507181277 | H180: 998 | I180: 0.3434
A181: 2019-10-01 | E181: 2019-10-01 | F181: 0.09 | G181: =IF(F180="","",G180+(G180*F180/100)) -> 3.51033774 | H181: 998 | I181: 0.3153
A182: 2019-11-01 | E182: 2019-11-01 | F182: 0.14 | G182: 3.513497044 | H182: 998 | I182: 0.2871
A183: 2019-12-01 | E183: 2019-12-01 | F183: 1.05 | G183: 3.51841594 | H183: 998 | I183: 0.2871
A184: 2020-01-01 | E184: 2020-01-01 | F184: 0.71 | G184: 3.555359307 | H184: 998 | I184: 0.2588
A185: 2020-02-01 | E185: 2020-02-01 | F185: 0.22 | G185: 3.580602358 | H185: 998 | I185: 0.2588
A186: 2020-03-01 | E186: 2020-03-01 | F186: 0.02 | G186: 3.588479684 | H186: 998 | I186: 0.2446
A187: 2020-04-01 | E187: 2020-04-01 | F187: -0.01 | G187: 3.589197379 | H187: 998 | I187: 0.2162
A188: 2020-05-01 | E188: 2020-05-01 | F188: -0.59 | G188: 3.58883846 | H188: 998 | I188: 0.2162
A189: 2020-06-01 | E189: 2020-06-01 | F189: 0.02 | G189: 3.567664313 | H189: 998 | I189: 0.1733
A190: 2020-07-01 | E190: 2020-07-01 | F190: 0.3 | G190: 3.568377846 | H190: 998 | I190: 0.1303
A191: 2020-08-01 | E191: 2020-08-01 | F191: 0.23 | G191: 3.579082979 | H191: 998 | I191: 0.1303
A192: 2020-09-01 | E192: 2020-09-01 | F192: 0.45 | G192: 3.58731487 | H192: 998 | I192: 0.1159
A193: 2020-10-01 | E193: 2020-10-01 | F193: 0.94 | G193: 3.603457787 | H193: 998 | I193: 0.1159
A194: 2020-11-01 | E194: 2020-11-01 | F194: 0.81 | G194: 3.63733029 | H194: 998 | I194: 0.1159
A195: 2020-12-01 | E195: 2020-12-01 | F195: 1.06 | G195: 3.666792666 | H195: 998 | I195: 0.1159
A196: 2021-01-01 | C196: 0.15 | E196: 2021-01-01 | F196: 0.78 | G196: 3.705660668 | H196: 1045 | I196: 0.1159
A197: 2021-02-01 | C197: 0.13 | D197: =IF(C196="","",D196+C196) -> 0.15 | E197: 2021-02-01 | F197: 0.48 | G197: 3.734564821 | H197: 1045 | I197: 0.1159
A198: 2021-03-01 | C198: 0.2 | E198: 2021-03-01 | F198: 0.93 | G198: 3.752490732 | H198: 1045 | I198: 0.1159
A199: 2021-04-01 | C199: 0.21 | E199: 2021-04-01 | F199: 0.6 | G199: 3.787388896 | H199: 1045 | I199: 0.159
A200: 2021-05-01 | C200: 0.27 | E200: 2021-05-01 | F200: 0.44 | G200: 3.810113229 | H200: 1045 | I200: 0.159
... 69 more rows

Sheet VALIDAÇÃO (hidden)
C3: data base | D3: taxa | F3: CÓDIGO U.O | H3: UNIDADE ORÇAMENTÁRIA | I3: CÓDIGO | K3: ÓRGÃO DE ORIGEM no PCR | L3: Unidade Orçamentária ATUAL | M3: CÓDIGO U.O | N3: Unidade Orçamentária ATUAL
F4: 37101 | H4: Controladoria Geral da União - CGU | I4: - | K4: Controladoria Geral da União - CGU | L4: Controladoria-Geral da União - Administração Direta | M4: 37101 | N4: Controladoria-Geral da União - Administração Direta
C5: 2022-05-01 | D5: 11.69 | F5: 53204 | H5: Departamento Nacional de Obras contra as Secas - DNOCS | I5: 53204 | K5: Departamento Nacional de Obras contra as Secas - DNOCS | L5: Departamento Nacional de Obras Contra as Secas - DNOCS | M5: 53204 | N5: Departamento Nacional de Obras Contra as Secas - DNOCS
C6: 2022-06-01 | D6: 10.66 | F6: 36901 | H6: Fundo Nacional de Saúde | I6: 36901 | K6: Fundo Nacional de Saúde | L6: Fundo Nacional de Saúde | M6: 36901 | N6: Fundo Nacional de Saúde
C7: 2022-07-01 | D7: 9.64 | F7: 49201 | H7: INCRA | I7: 22201 | K7: INCRA | L7: Instituto Nacional de Colonização e Reforma Agrária - INCRA | M7: 49201 | N7: Instituto Nacional de Colonização e Reforma Agrária - INCRA
C8: 2022-08-01 | D8: 8.61 | F8: 33201 | H8: Instituto Nacional do Seguro Social - INSS | I8: 40201 | K8: Instituto Nacional do Seguro Social - INSS | L8: Instituto Nacional do Seguro Social | M8: 33201 | N8: Instituto Nacional do Seguro Social
C9: 2022-09-01 | D9: 7.44 | F9: 46101 | H9: Ministério da Administração Federal e Reforma do Estado | I9: - | K9: Ministério da Administração Federal e Reforma do Estado | L9: Ministério da Gestão e da Inovação em Serviços Públicos - Administração Direta | M9: 46101 | N9: Ministério da Gestão e da Inovação em Serviços Públicos - Administração Direta
C10: 2022-10-01 | D10: 6.37 | F10: 52101 | H10: Ministério da Defesa | I10: 52101 | K10: Ministério da Defesa | L10: Ministério da Defesa - Administração Direta | M10: 52101 | N10: Ministério da Defesa - Administração Direta
C11: 2022-11-01 | D11: 5.35 | F11: 25101 | H11: Ministério da Economia | I11: 25101 | K11: Ministério da Economia | L11: Ministério da Fazenda - Administração Direta | M11: 25101 | N11: Ministério da Fazenda - Administração Direta
C12: 2022-12-01 | D12: 4.33 | F12: 25101 | H12: Ministério da Fazenda | I12: 25101 | K12: Ministério da Fazenda | L12: Ministério da Fazenda - Administração Direta | M12: 25101 | N12: Ministério da Fazenda - Administração Direta
C13: 2023-01-01 | D13: 3.21 | F13: 30101 | H13: Ministério da Justiça | I13: 30101 | K13: Ministério da Justiça | L13: Ministério da Justiça e Segurança Pública - Administração Direta | M13: 30101 | N13: Ministério da Justiça e Segurança Pública - Administração Direta
C14: 2023-02-01 | D14: 2.09 | F14: 55101 | H14: Ministério da Mulher, da Família e dos Direitos Humanos | I14: 81101 | K14: Ministério da Mulher, da Família e dos Direitos Humanos | L14: Ministério do Desenvolvimento e Assistência Social, Família e Combate à Fome - Adm. Direta | M14: 55101 | N14: Ministério do Desenvolvimento e Assistência Social, Família e Combate à Fome - Adm. Direta
C15: 2023-03-01 | D15: 1.17 | F15: 33101 | H15: Ministério da Saúde | I15: 36000 | K15: Ministério da Previdência Social | L15: Ministério da Previdência Social - Administração Direta | M15: 33101 | N15: Ministério da Previdência Social - Administração Direta
F16: 36901 | H16: Ministério do Planejamento, Orçamento e Gestão | I16: 47000 | K16: Ministério da Saúde | L16: Fundo Nacional de Saúde | M16: 36901 | N16: Fundo Nacional de Saúde
F17: 35101 | H17: Ministério do Trabalho e Previdência | I17: 40101 | K17: Ministério das Relações Exteriores | L17: Ministério das Relações Exteriores - Administração Direta | M17: 35101 | N17: Ministério das Relações Exteriores - Administração Direta
F18: 32101 | H18: - | I18: - | K18: Ministério de Minas e Energia | L18: Ministério de Minas e Energia - Administração Direta | M18: 32101 | N18: Ministério de Minas e Energia - Administração Direta
F19: 47101 | H19: - | I19: - | K19: Ministério do Planejamento, Orçamento e Gestão | L19: Ministério do Planejamento e Orçamento - Administração Direta | M19: 47101 | N19: Ministério do Planejamento e Orçamento - Administração Direta
F20: 40101 | H20: - | I20: - | K20: Ministério do Trabalho | L20: Ministério do Trabalho e Emprego - Administração Direta | M20: 40101 | N20: Ministério do Trabalho e Emprego - Administração Direta
F21: 40101 | H21: - | I21: - | K21: Ministério do Trabalho e Previdência | L21: Ministério do Trabalho e Emprego - Administração Direta | M21: 40101 | N21: Ministério do Trabalho e Emprego - Administração Direta
F22: 22101 | H22: - | I22: - | K22: Ministério da Agricultura Pecuária e Abastecimento | L22: Ministério da Agricultura e Pecuária | M22: 22101 | N22: Ministério da Agricultura e Pecuária
F23: 63101 | H23: - | I23: - | K23: Advocacia Geral da União | L23: Advocacia Geral da União | M23: 63101 | N23: Advocacia Geral da União
F24: 52111 | H24: - | I24: - | K24: Ministério da Aeronáutica | L24: Comando da Aeronáutica | M24: 52111 | N24: Comando da Aeronáutica
F25: 25208 | H25: - | I25: - | K25: Superintendência de Seguros Privados - SUSEP | L25: Superintendência de Seguros Privados - SUSEP | M25: 25208 | N25: Superintendência de Seguros Privados - SUSEP
F26: 26101 | H26: - | I26: - | K26: Ministério da Educação e do Desporto | L26: Ministério da Educação - Administração Direta | M26: 26101 | N26: Ministério da Educação - Administração Direta
H27: - | I27: -
H28: - | I28: -
H29: - | I29: -
H30: - | I30: -
H31: - | I31: -
H32: - | I32: -
H33: - | I33: -
H34: - | I34: -
